lending/lending_fUSD_20260310
["ID","MTS","AMOUNT","RATE_DAILY","PERIOD"]
[408131100,1773162296117,-621.78829552,0.00046486,30]
[408131101,1773162296143,-500.0,0.0004649,30]
[408131102,1773162296169,-493.69575205,0.0004649,60]
[408131103,1773162296195,-150.0,0.00046495,120]
[408131104,1773162296223,-2500.0,0.000465,120]
[408131105,1773162296251,-500.0,0.000465,120]
[408131106,1773162296282,-151.9785608,0.0004652,60]
[408131107,1773162296308,-500.0,0.0004652,60]
[408131108,1773162296335,-151.0,0.00046528,120]
[408131109,1773162296363,-500.0,0.00046528,120]
[408131110,1773162296392,-500.0,0.00046574,60]
[408131111,1773162296424,-168.3888056,0.00046574,60]
[408131112,1773162296454,-174.61919141,0.00046574,80]
[408131113,1773162296482,-500.0,0.00046574,80]
[408131114,1773162296512,-181.08010149,0.00046574,120]
[408131115,1773162296541,-500.0,0.00046574,120]
[408131116,1773162296569,-250.0,0.00046574,60]
[408131117,1773162296598,-1148.61238259,0.00046574,60]
[408131118,1773162296629,-250.0,0.00046574,80]
[408131119,1773162296657,-8000.0,0.00046574,60]
[408131120,1773162296686,-1191.11104075,0.00046574,80]
[408131121,1773162296715,-250.0,0.00046574,120]
[408131122,1773162296743,-579.88197956,0.00046574,60]
[408131123,1773162296770,-8000.0,0.00046574,80]
[408131124,1773162296798,-1235.18214925,0.00046574,120]
[408131125,1773162296825,-601.3376128,0.00046574,80]
[408131126,1773162296852,-500.0,0.00046574,60]
[408131127,1773162296878,-8000.0,0.00046574,120]
[408131128,1773162296903,-623.58710448,0.00046574,120]
[408131129,1773162296929,-500.0,0.00046574,80]
[408131130,1773162296956,-1500.0,0.00046574,60]
[408131131,1773162296983,-500.0,0.00046574,120]
[408131132,1773162297008,-1500.0,0.00046574,60]
[408131133,1773162297035,-1500.0,0.00046574,80]
[408131134,1773162297064,-1500.0,0.00046574,80]
[408131135,1773162297091,-500.0,0.00046574,60]
[408131136,1773162297120,-1500.0,0.00046574,120]
[408131137,1773162297146,-500.0,0.00046574,80]
[408131138,1773162297176,-1500.0,0.00046574,120]
[408131139,1773162297205,-500.0,0.00046574,120]
[408131140,1773162297233,-557.5788265,0.00046574,60]
[408131141,1773162297260,-3000.0,0.00046574,60]
[408131142,1773162297287,-3000.0,0.00046574,80]
[408131143,1773162297314,-3000.0,0.00046574,120]
[408131144,1773162297341,-151.0,0.00046574,60]
[408131145,1773162297368,-151.0,0.00046574,80]
[408131146,1773162297396,-250.0,0.00046574,60]
[408131147,1773162297426,-151.0,0.00046574,120]
[408131148,1773162297454,-500.0,0.00046574,60]
[408131149,1773162297480,-1500.0,0.00046574,60]
[408131150,1773162297510,-10000.0,0.00046574,60]
[408131151,1773162297537,-250.0,0.00046574,80]
[408131152,1773162297565,-500.0,0.00046574,80]
[408131153,1773162297593,-1500.0,0.00046574,80]
[408131154,1773162297621,-10000.0,0.00046574,80]
[408131155,1773162297888,-250.0,0.00046574,120]
[408131156,1773162297916,-500.0,0.00046574,120]
[408131157,1773162297943,-1500.0,0.00046574,120]
[408131158,1773162297972,-10000.0,0.00046574,120]
[408131159,1773162297999,-151.0,0.00046574,60]
[408131160,1773162298026,-151.0,0.00046574,80]
[408131161,1773162298053,-151.0,0.00046574,120]
[408131162,1773162298087,-1000.0,0.00046574,60]
[408131163,1773162298118,-1000.0,0.00046574,80]
[408131164,1773162298149,-1000.0,0.00046574,120]
[408131165,1773162298179,-691.39774486,0.00046574,60]
[408131166,1773162298212,-716.97946142,0.00046574,80]
[408131167,1773162298246,-168.3888056,0.00046574,60]
[408131168,1773162298279,-168.3888056,0.00046574,60]
[408131169,1773162298311,-174.61919141,0.00046574,80]
[408131170,1773162298341,-181.08010149,0.00046574,120]
[408131171,1773162298373,-1500.0,0.00046574,60]
[408131172,1773162298406,-1500.0,0.00046574,80]
[408131173,1773162298439,-1500.0,0.00046574,120]
[408131174,1773162298472,-557.5788265,0.00046574,60]
[408131175,1773162298505,-578.20924308,0.00046574,80]
[408131176,1773162298539,-599.60298507,0.00046574,120]
[408131177,1773162298571,-626.65113612,0.00046575,60]
[408131178,1773162298605,-1336.0,0.00046575,120]
[408131179,1773162298641,-2000.0,0.00046575,120]
[408131180,1773162298675,-2000.0,0.00046575,120]
[408131181,1773162298710,-2000.0,0.00046575,120]
[408131182,1773162298744,-2000.0,0.00046575,120]
[408131183,1773162298780,-2000.0,0.00046575,120]
[408131184,1773162298812,-2000.0,0.00046575,120]
[408131185,1773162298843,-2000.0,0.00046575,120]
[408131186,1773162298875,-2000.0,0.00046575,120]
[408131187,1773162298906,-2000.0,0.00046575,120]
[408131188,1773162298937,-2000.0,0.00046575,120]
[408131189,1773162298968,-2000.0,0.00046575,120]
[408131190,1773162298999,-2000.0,0.00046575,120]
[408131191,1773162299030,-2000.0,0.00046575,120]
[408131192,1773162299061,-2000.0,0.00046575,120]
[408131193,1773162299092,-2000.0,0.00046575,120]
[408131194,1773162299123,-2000.0,0.00046575,120]
[408131195,1773162299153,-2000.0,0.00046575,120]
[408131196,1773162299183,-2000.0,0.00046575,120]
[408131197,1773162299216,-2000.0,0.00046575,120]
[408131198,1773162299248,-2000.0,0.00046575,120]
[408131199,1773162299283,-2000.0,0.00046575,120]
[408131200,1773162299316,-2000.0,0.00046575,120]
[408131201,1773162299353,-2000.0,0.00046575,120]
[408131202,1773162299394,-2000.0,0.00046575,120]
[408131203,1773162299433,-2000.0,0.00046575,120]
[408131204,1773162299469,-2000.0,0.00046575,120]
[408131205,1773162299504,-2000.0,0.00046575,120]
[408131206,1773162299539,-2000.0,0.00046575,120]
[408131207,1773162299574,-2000.0,0.00046575,120]
[408131208,1773162299607,-2000.0,0.00046575,120]
[408131209,1773162299641,-2000.0,0.00046575,120]
[408131210,1773162299677,-2000.0,0.00046575,120]
[408131211,1773162299713,-262.324,0.00046575,120]
[408131212,1773162299749,-2829.98,0.00046575,120]
[408131213,1773162299784,-428.33721973,0.00046575,60]
[408131214,1773162301060,609.92,0.00045,30]
[408131215,1773162301100,1265.93,0.00045,30]
[408131216,1773162301137,721.37,0.00045,30]
[408131217,1773162301175,382.0,0.0004257,120]
[408131218,1773162307605,-150.32192857,0.00041897,30]
[408131219,1773162307643,-150.32192857,0.00041914,30]
[408131220,1773162307680,-500.0,0.00042,120]
[408131221,1773162307717,-500.0,0.000425,120]
[408131222,1773162307806,-382.0,0.00043,120]
[408131223,1773162307843,-500.0,0.00043068,120]
[408131224,1773162307879,-600.0,0.00043068,120]
[408131225,1773162307920,-448.6,0.00046486,120]
[408131226,1773162307960,-362.0,0.00046575,60]
[408131227,1773162307996,-271.06254828,0.00046575,120]
[408131228,1773162310612,382.0,0.0004257,120]
[408131229,1773162311820,1500.0,0.00046575,30]
[408131230,1773162313333,1500.0,0.00046575,30]
[408131231,1773162367893,1435.860729,7.945e-05,2]
[408131233,1773162500046,216.82335999,0.00014158,2]
[408131298,1773162631587,-500.0,0.00014634,2]
[408131299,1773162631597,-151.0,0.00014634,2]
[408131300,1773162631607,-250.0,0.00014634,2]
[408131301,1773162631616,-3441.42,0.0001589,2]
[408131302,1773162631626,-206.90591533,0.00015997,2]
[408131303,1773162631636,-1200.0,0.00016096,2]
[408131304,1773162631646,-400.0,0.00016097,2]
[408131305,1773162631656,-250.0,0.00016097,2]
[408131306,1773162631666,-500.0,0.00016097,2]
[408131307,1773162631675,-2000.0,0.00016128,2]
[408131308,1773162631684,-150.0,0.00016132,2]
[408131309,1773162631694,-206.90591532,0.000162,2]
[408131311,1773162631703,-300.0,0.00016283,2]
[408131313,1773162631712,-50349.19815849,0.00016284,2]
[408131315,1773162631723,-10017.03158435,0.00016284,2]
[408131316,1773162631734,-8519.87745716,0.00016284,2]
[408131317,1773162631744,-783.7035823,0.000163,3]
[408131318,1773162631753,-828.49384104,0.000163,2]
[408131319,1773162631763,-200.0,0.0001634,2]
[408131320,1773162631773,-12423.23136759,0.00016384,2]
[408131321,1773162631784,-1527.75863241,0.00016384,2]
[408131322,1773162631793,-497.005,0.00016384,2]
[408131323,1773162631803,-151.0,0.00016409,2]
[408131324,1773162631812,-151.0,0.00016409,2]
[408131325,1773162631822,-201.46220607,0.00016411,5]
[408131326,1773162631831,-1317.408,0.00016411,2]
[408131327,1773162631840,-164.543,0.00016411,2]
[408131328,1773162631849,-1000.0,0.00016512,2]
[408131329,1773162631858,-1552.64,0.0001657,2]
[408131330,1773162631868,-150.0,0.0001657,2]
[408131331,1773162631877,-503.69,0.00016586,2]
[408131332,1773162631887,-362.53227662,0.000166,2]
[408131333,1773162631897,-500.0,0.00016611,2]
[408131334,1773162631906,-500.0,0.00016611,2]
[408131335,1773162631915,-321.58,0.00016611,2]
[408131336,1773162631924,-1591.0,0.00016937,2]
[408131337,1773162631933,-510.0,0.00017,2]
[408131338,1773162631945,-162.14,0.00017203,2]
[408131339,1773162631954,-979.93206005,0.00017457,2]
[408131340,1773162631966,-980.58351656,0.00017457,2]
[408131353,1773162637557,-1964.94447344,0.00017457,2]
[408131354,1773162637825,-1391.70994995,0.00017457,2]
[408131355,1773162637834,-588.87080861,0.00017685,2]
[408131356,1773162637845,-1000.0,0.00017685,2]
[408131366,1773162641754,-91.12919139,0.00017685,2]
[408131368,1773162641763,-85.2708105,0.000177,2]
[408131375,1773162642054,-701.33501871,0.000177,2]
[408131376,1773162642064,-420.0,0.00017797,2]
[408131377,1773162642073,-1007.12616149,0.0001786,2]
[408131378,1773162642083,-1228.83497507,0.0001789,2]
[408131379,1773162642092,-6458.34163975,0.00017899,2]
[408131380,1773162642102,-7201.42441341,0.0001799,2]
[408131381,1773162642111,-515.62296616,0.00017998,2]
[408131382,1773162642120,-188.56142151,0.00017998,2]
[408131383,1773162642129,-181.34715684,0.00017998,2]
[408131384,1773162642139,-515.62296616,0.00017998,2]
[408131385,1773162642149,-500.0,0.00017998,2]
[408131386,1773162642159,-515.62296616,0.00017998,2]
[408131387,1773162642168,-500.0,0.00017998,2]
[408131388,1773162642177,-515.62296616,0.00017998,2]
[408131389,1773162642186,-360.96416769,0.00017998,2]
[408131390,1773162642196,-515.62296616,0.00017998,2]
[408131391,1773162642206,-515.62296616,0.00017998,2]
[408131392,1773162642215,-515.62296616,0.00017998,2]
[408131393,1773162642224,-500.0,0.00017998,2]
[408131394,1773162642234,-515.62296616,0.00017998,2]
[408131395,1773162642243,-515.62296616,0.00017998,2]
[408131396,1773162642252,-500.0,0.00017998,2]
[408131397,1773162642261,-515.62296616,0.00017998,2]
[408131398,1773162642270,-500.0,0.00017998,2]
[408131399,1773162642279,-515.62296616,0.00017998,2]
[408131400,1773162642289,-515.62296616,0.00017998,2]
[408131401,1773162642298,-500.0,0.00017998,2]
[408131402,1773162642307,-515.62296616,0.00017998,2]
[408131404,1773162642316,-515.62296616,0.00017998,2]
[408131405,1773162642325,-515.62296616,0.00017998,2]
[408131407,1773162642334,-515.62296616,0.00017998,2]
[408131409,1773162642343,-515.62296616,0.00017998,2]
[408131411,1773162642352,-515.62296616,0.00017998,2]
[408131413,1773162642361,-515.62296616,0.00017998,2]
[408131415,1773162642370,-515.62296616,0.00017998,2]
[408131418,1773162642379,-515.62296616,0.00017998,2]
[408131420,1773162642387,-515.62296616,0.00017998,2]
[408131422,1773162642396,-515.62296616,0.00017998,2]
[408131424,1773162642405,-515.62296616,0.00017998,2]
[408131426,1773162642414,-515.62296616,0.00017998,2]
[408131429,1773162642424,-515.62296616,0.00017998,2]
[408131431,1773162642433,-515.62296616,0.00017998,2]
[408131433,1773162642443,-515.62296616,0.00017998,2]
[408131435,1773162642452,-515.62296616,0.00017998,2]
[408131437,1773162642461,-515.62296616,0.00017998,2]
[408131439,1773162642470,-515.62296616,0.00017998,2]
[408131441,1773162642479,-515.62296616,0.00017998,2]
[408131443,1773162642489,-515.62296616,0.00017998,2]
[408131444,1773162642500,-515.62296616,0.00017998,2]
[408131446,1773162642509,-515.62296616,0.00017998,2]
[408131448,1773162642519,-515.62296616,0.00017998,2]
[408131450,1773162642529,-515.62296616,0.00017998,2]
[408131452,1773162642539,-515.62296616,0.00017998,2]
[408131455,1773162642549,-515.62296616,0.00017998,2]
[408131457,1773162642558,-515.62296616,0.00017998,2]
[408131461,1773162642568,-515.62296616,0.00017998,2]
[408131466,1773162642577,-515.62296616,0.00017998,2]
[408131471,1773162642587,-515.62296616,0.00017998,2]
[408131476,1773162642597,-515.62296616,0.00017998,2]
[408131480,1773162642606,-515.62296616,0.00017998,2]
[408131483,1773162642615,-515.62296616,0.00017998,2]
[408131485,1773162642624,-515.62296616,0.00017998,2]
[408131487,1773162642634,-515.62296616,0.00017998,2]
[408131489,1773162642643,-515.62296616,0.00017998,2]
[408131491,1773162642652,-515.62296616,0.00017998,2]
[408131493,1773162642662,-515.62296616,0.00017998,2]
[408131495,1773162642671,-515.62296616,0.00017998,2]
[408131497,1773162642680,-515.62296616,0.00017998,2]
[408131499,1773162642689,-5004.90001375,0.00018,5]
[408131501,1773162642699,-65594.12178865,0.00018,2]
[408131502,1773162642709,-533.7630252,0.00018,2]
[408131503,1773162642718,-308.80438942,0.00018,2]
[408131504,1773162642727,-1003.00365502,0.00018,2]
[408131505,1773162642736,-6458.34163974,0.00018091,2]
[408131506,1773162642745,-2000.0,0.00018144,2]
[408131507,1773162642754,-6458.34163974,0.00018283,2]
[408131508,1773162642763,-922.0,0.00018355,2]
[408131509,1773162642772,-1213.0,0.00018355,2]
[408131510,1773162642782,-2461.0,0.00018445,2]
[408131511,1773162642791,-5995.0,0.00018445,2]
[408131512,1773162642800,-414.0,0.00018445,2]
[408131513,1773162642809,-6458.34163974,0.00018475,2]
[408131514,1773162642818,-510.0,0.00018615,3]
[408131515,1773162642827,-172.91703981,0.00018621,2]
[408131516,1773162642836,-6458.34163974,0.00018667,2]
[408131517,1773162642845,-470.31827955,0.00018813,2]
[408131518,1773162642854,-200.0,0.00018852,2]
[408131519,1773162642863,-6458.34163974,0.00018858,2]
[408131520,1773162642873,-3026.15855569,0.000189,2]
[408131521,1773162642882,-782.57,0.0001899,2]
[408131522,1773162642891,-4190.0,0.00019,2]
[408131523,1773162642900,-21925.96350167,0.00019,2]
[408131524,1773162642909,-500.0,0.00019,2]
[408131525,1773162642918,-500.0,0.00019,2]
[408131526,1773162642927,-500.0,0.00019,2]
[408131527,1773162642937,-500.0,0.00019,2]
[408131528,1773162642946,-500.0,0.00019,2]
[408131529,1773162642955,-500.0,0.00019,2]
[408131530,1773162642964,-500.0,0.00019,2]
[408131531,1773162642973,-500.0,0.00019,2]
[408131532,1773162642982,-500.0,0.00019,2]
[408131533,1773162642993,-500.0,0.00019,2]
[408131534,1773162643008,-500.0,0.00019,2]
[408131536,1773162643018,-500.0,0.00019,2]
[408131538,1773162643028,-500.0,0.00019,2]
[408131539,1773162643039,-500.0,0.00019,2]
[408131540,1773162643051,-500.0,0.00019,2]
[408131541,1773162643060,-500.0,0.00019,2]
[408131542,1773162643069,-500.0,0.00019,2]
[408131544,1773162643079,-500.0,0.00019,2]
[408131545,1773162643089,-959.0,0.00019,2]
[408131546,1773162643099,-500.0,0.00019,2]
[408131547,1773162643110,-500.0,0.00019,2]
[408131548,1773162643120,-500.0,0.00019,2]
[408131549,1773162643133,-500.0,0.00019,2]
[408131550,1773162643142,-500.0,0.00019,2]
[408131551,1773162643152,-500.0,0.00019,2]
[408131552,1773162643162,-500.0,0.00019,2]
[408131553,1773162643171,-500.0,0.00019,2]
[408131554,1773162643181,-500.0,0.00019,2]
[408131555,1773162643191,-500.0,0.00019,2]
[408131556,1773162643200,-500.0,0.00019,2]
[408131557,1773162643209,-500.0,0.00019,2]
[408131558,1773162643218,-500.0,0.00019,2]
[408131559,1773162643227,-500.0,0.00019,2]
[408131560,1773162643237,-500.0,0.00019,2]
[408131561,1773162643247,-866.0,0.00019,2]
[408131562,1773162643256,-500.0,0.00019,2]
[408131563,1773162643265,-500.0,0.00019,2]
[408131564,1773162643276,-500.0,0.00019,2]
[408131565,1773162643286,-500.0,0.00019,2]
[408131566,1773162643295,-500.0,0.00019,2]
[408131567,1773162643305,-500.0,0.00019,2]
[408131568,1773162643315,-500.0,0.00019,2]
[408131569,1773162643326,-500.0,0.00019,2]
[408131570,1773162643336,-500.0,0.00019,2]
[408131571,1773162643345,-500.0,0.00019,2]
[408131572,1773162643356,-500.0,0.00019,2]
[408131573,1773162643366,-500.0,0.00019,2]
[408131574,1773162643376,-500.0,0.00019,2]
[408131575,1773162643387,-500.0,0.00019,2]
[408131576,1773162643396,-500.0,0.00019,2]
[408131577,1773162643405,-500.0,0.00019,2]
[408131578,1773162643415,-500.0,0.00019,2]
[408131579,1773162643425,-500.0,0.00019,2]
[408131580,1773162643436,-500.0,0.00019,2]
[408131581,1773162643446,-500.0,0.00019,2]
[408131582,1773162643456,-500.0,0.00019,2]
[408131583,1773162643465,-500.0,0.00019,2]
[408131584,1773162643474,-500.0,0.00019,2]
[408131585,1773162643483,-500.0,0.00019,2]
[408131586,1773162643493,-500.0,0.00019,2]
[408131587,1773162643505,-500.0,0.00019,2]
[408131588,1773162643515,-500.0,0.00019,2]
[408131589,1773162643524,-500.0,0.00019,2]
[408131590,1773162643535,-500.0,0.00019,2]
[408131591,1773162643544,-500.0,0.00019,2]
[408131592,1773162643553,-500.0,0.00019,2]
[408131593,1773162643562,-500.0,0.00019,2]
[408131594,1773162643573,-500.0,0.00019,2]
[408131595,1773162643582,-500.0,0.00019,2]
[408131596,1773162643591,-500.0,0.00019,2]
[408131597,1773162643600,-500.0,0.00019,2]
[408131598,1773162643609,-568.0,0.00019,2]
[408131599,1773162643618,-1000.0,0.00019,2]
[408131600,1773162643628,-150.0,0.00019027,2]
[408131601,1773162643637,-150.0,0.00019027,2]
[408131602,1773162643647,-619.0,0.00019027,2]
[408131603,1773162643656,-1342.0,0.00019027,2]
[408131604,1773162643665,-6458.34163974,0.0001905,2]
[408131605,1773162643675,-2241.0,0.00019061,2]
[408131606,1773162643684,-782.57,0.00019232,2]
[408131607,1773162643693,-6458.34163974,0.00019242,2]
[408131608,1773162643702,-1000.0,0.00019274,2]
[408131609,1773162643711,-168.0,0.00019278,2]
[408131610,1773162643720,-839.97,0.000193,2]
[408131611,1773162643730,-884.65761817,0.00019331,2]
[408131612,1773162643739,-250.0,0.00019336,2]
[408131613,1773162643748,-2351.0,0.00019431,2]
[408131614,1773162643757,-6458.34163974,0.00019434,2]
[408131615,1773162643766,-587.0,0.00019453,2]
[408131616,1773162643775,-225.0056,0.0001953,2]
[408131617,1773162643785,-225.00561,0.0001953,2]
[408131618,1773162643794,-1000.0,0.00019548,2]
[408131619,1773162643805,-1074.13551224,0.000196,8]
[408131620,1773162643815,-2503.99721127,0.000196,8]
[408131621,1773162643824,-1436.70614573,0.000196,5]
[408131622,1773162643833,-3957.85580899,0.00019626,2]
[408131623,1773162643842,-267.20920327,0.00019626,2]
[408131624,1773162643852,-6458.34163974,0.00019626,2]
[408131625,1773162643861,-4758.9043,0.00019626,2]
[408131626,1773162643870,-328.58665871,0.00019716,2]
[408131627,1773162643879,-328.58665871,0.00019716,2]
[408131628,1773162643888,-328.58665871,0.00019716,2]
[408131629,1773162643897,-782.57,0.00019716,2]
[408131630,1773162643906,-782.57,0.00019716,2]
[408131631,1773162643915,-782.57,0.00019716,2]
[408131632,1773162643924,-500.0,0.00019723,2]
[408131633,1773162643933,-218.85582303,0.00019723,2]
[408131634,1773162643942,-300.0,0.00019725,2]
[408131635,1773162643951,-164.431,0.00019725,2]
[408131636,1773162643960,-542.7551516,0.00019725,2]
[408131637,1773162643969,-236.00331053,0.00019725,2]
[408131638,1773162643978,-500.0,0.00019725,2]
[408131639,1773162643986,-310.64028046,0.00019725,2]
[408131640,1773162643995,-500.0,0.00019725,2]
[408131641,1773162644005,-500.0,0.00019725,2]
[408131642,1773162644014,-485.06921661,0.00019725,2]
[408131643,1773162644023,-1031.68803085,0.00019726,2]
[408131644,1773162644033,-821.6,0.00019726,2]
[408131645,1773162644043,-500.0,0.00019726,2]
[408131646,1773162644052,-500.0,0.00019726,2]
[408131647,1773162644061,-656.77,0.00019726,2]
[408131648,1773162644071,-821.6,0.00019726,2]
[408131649,1773162644080,-1119.61,0.00019726,2]
[408131650,1773162644090,-500.0,0.00019726,2]
[408131651,1773162644099,-194.8382772,0.00019726,2]
[408131652,1773162644108,-512.60248919,0.00019726,2]
[408131653,1773162644118,-1119.61,0.00019726,2]
[408131654,1773162644127,-656.77,0.00019726,2]
[408131655,1773162644136,-821.6,0.00019726,2]
[408131656,1773162644146,-500.0,0.00019726,2]
[408131657,1773162644155,-656.80883966,0.00019726,2]
[408131658,1773162644165,-500.0,0.00019726,2]
[408131659,1773162644175,-821.6,0.00019726,2]
[408131660,1773162644185,-1119.61,0.00019726,2]
[408131661,1773162644194,-500.0,0.00019726,2]
[408131662,1773162644203,-821.6,0.00019726,2]
[408131663,1773162644213,-1119.61,0.00019726,2]
[408131664,1773162644223,-500.0,0.00019726,2]
[408131665,1773162644232,-1006.8,0.00019726,2]
[408131666,1773162644241,-1119.61,0.00019726,2]
[408131667,1773162644253,-821.6,0.00019726,2]
[408131668,1773162644263,-500.0,0.00019726,2]
[408131669,1773162644273,-1006.8,0.00019726,2]
[408131670,1773162644282,-1119.61,0.00019726,2]
[408131671,1773162644292,-821.6,0.00019726,2]
[408131672,1773162644303,-500.0,0.00019726,2]
[408131673,1773162644312,-1119.61,0.00019726,2]
[408131674,1773162644322,-1006.8,0.00019726,2]
[408131675,1773162644331,-821.6,0.00019726,2]
[408131676,1773162644340,-520.64602308,0.00019726,2]
[408131677,1773162644349,-1119.73920524,0.00019726,2]
[408131678,1773162644358,-1006.8,0.00019726,2]
[408131679,1773162644367,-821.6,0.00019726,2]
[408131680,1773162644377,-500.0,0.00019726,2]
[408131681,1773162644386,-1006.8,0.00019726,2]
[408131682,1773162644395,-821.6,0.00019726,2]
[408131683,1773162644404,-500.0,0.00019726,2]
[408131684,1773162644414,-1006.8,0.00019726,2]
[408131685,1773162644423,-821.6376788,0.00019726,2]
[408131686,1773162644432,-507.83913725,0.00019726,2]
[408131687,1773162644442,-500.0,0.00019726,2]
[408131688,1773162644451,-602.27857436,0.00019726,2]
[408131689,1773162644460,-814.26,0.00019726,2]
[408131690,1773162644469,-1006.8,0.00019726,2]
[408131691,1773162644480,-500.0,0.00019726,2]
[408131692,1773162644489,-814.26,0.00019726,2]
[408131693,1773162644502,-1006.8,0.00019726,2]
[408131694,1773162644511,-500.0,0.00019726,2]
[408131695,1773162644521,-500.0,0.00019726,2]
[408131696,1773162644530,-814.26,0.00019726,2]
[408131697,1773162644541,-1006.8,0.00019726,2]
[408131698,1773162644550,-1006.8,0.00019726,2]
[408131699,1773162644561,-1006.8,0.00019726,2]
[408131700,1773162644571,-500.0,0.00019726,2]
[408131701,1773162644580,-500.0,0.00019726,2]
[408131702,1773162644590,-814.26,0.00019726,2]
[408131703,1773162644600,-1006.8,0.00019726,2]
[408131704,1773162644609,-500.0,0.00019726,2]
[408131705,1773162644618,-528.55,0.00019726,2]
[408131706,1773162644627,-513.81924963,0.00019726,2]
[408131707,1773162644636,-1006.8,0.00019726,2]
[408131708,1773162644645,-814.26,0.00019726,2]
[408131709,1773162644655,-500.0,0.00019726,2]
[408131710,1773162644665,-528.55,0.00019726,2]
[408131711,1773162644679,-1006.8,0.00019726,2]
[408131712,1773162644693,-814.26,0.00019726,2]
[408131713,1773162644708,-528.55,0.00019726,2]
[408131714,1773162644720,-235.32800023,0.00019726,2]
[408131715,1773162644731,-500.0,0.00019726,2]
[408131716,1773162644744,-1006.8,0.00019726,2]
[408131717,1773162644757,-814.26,0.00019726,2]
[408131718,1773162644770,-528.55,0.00019726,2]
[408131719,1773162644783,-500.0,0.00019726,2]
[408131720,1773162644797,-1006.8,0.00019726,2]
[408131721,1773162644809,-814.26,0.00019726,2]
[408131722,1773162644820,-528.55,0.00019726,2]
[408131723,1773162644832,-3777.06,0.00019726,2]
[408131724,1773162644846,-814.26,0.00019726,2]
[408131725,1773162644859,-1006.8,0.00019726,2]
[408131726,1773162644874,-528.55,0.00019726,2]
[408131727,1773162644887,-500.0,0.00019726,2]
[408131728,1773162644901,-3777.06,0.00019726,2]
[408131729,1773162644915,-814.26,0.00019726,2]
[408131730,1773162644928,-1006.8,0.00019726,2]
[408131731,1773162644944,-528.55,0.00019726,2]
[408131732,1773162644956,-500.0,0.00019726,2]
[408131733,1773162644970,-562.55653342,0.00019726,2]
[408131734,1773162644983,-3777.06,0.00019726,2]
[408131735,1773162644996,-814.26,0.00019726,2]
[408131736,1773162645009,-1006.8,0.00019726,2]
[408131737,1773162645023,-528.55,0.00019726,2]
[408131738,1773162645037,-594.17143196,0.00019726,2]
[408131739,1773162645049,-3777.06,0.00019726,2]
[408131740,1773162645060,-814.26,0.00019726,2]
[408131741,1773162645072,-1006.8,0.00019726,2]
[408131742,1773162645083,-500.0,0.00019726,2]
[408131743,1773162645095,-528.55,0.00019726,2]
[408131744,1773162645109,-3777.06,0.00019726,2]
[408131745,1773162645124,-814.26,0.00019726,2]
[408131746,1773162645135,-1006.8,0.00019726,2]
[408131747,1773162645146,-500.0,0.00019726,2]
[408131748,1773162645158,-528.55,0.00019726,2]
[408131749,1773162645171,-3777.06,0.00019726,2]
[408131750,1773162645185,-814.26,0.00019726,2]
[408131751,1773162645198,-1006.8,0.00019726,2]
[408131752,1773162645209,-500.0,0.00019726,2]
[408131753,1773162645219,-528.55,0.00019726,2]
[408131754,1773162645230,-565.45942901,0.00019726,2]
[408131755,1773162645242,-3777.06,0.00019726,2]